fUST/lending_fUST_20240405
["ID","MTS","AMOUNT","RATE_DAILY","PERIOD"]
[321537640,1712296245263,-5484.72,0.00046575,5]
[321537642,1712296245273,-500.0,0.00046575,5]
[321537643,1712296245283,-506.47324708,0.00046575,5]
[321537646,1712296245292,-574.86,0.00046575,5]
[321537647,1712296245302,-341.21703623,0.00046575,5]
[321537649,1712296245313,-1057.39,0.00046575,5]
[321537651,1712296245322,-500.0,0.00046575,5]
[321537653,1712296245331,-730.01,0.00046575,5]
[321537655,1712296245340,-995.02,0.00046575,5]
[321537657,1712296245349,-500.0,0.00046575,5]
[321537659,1712296245358,-500.0,0.00046575,5]
[321537662,1712296245367,-507.63057632,0.00046575,5]
[321537665,1712296245377,-500.0,0.00046575,5]
[321537668,1712296245385,-500.0,0.00046575,5]
[321537671,1712296245394,-500.0,0.00046575,5]
[321537673,1712296245402,-500.0,0.00046575,5]
[321537675,1712296245411,-154.59547571,0.00046623,3]
[321537677,1712296245423,-176.286322,0.00046781,30]
[321537680,1712296245432,-500.0,0.00046848,5]
[321537683,1712296245441,-500.0,0.00046848,5]
[321537686,1712296245455,-500.0,0.00046848,5]
[321537689,1712296245464,-500.0,0.00046849,5]
[321537691,1712296245474,-500.0,0.00046849,5]
[321537694,1712296245483,-535.99597931,0.00046849,5]
[321537697,1712296245494,-152.72997428,0.00046849,5]
[321537699,1712296245503,-500.0,0.00046849,5]
[321537701,1712296245513,-500.0,0.00046849,5]
[321537703,1712296245522,-500.0,0.00046849,5]
[321537706,1712296245532,-500.0,0.00046849,5]
[321537709,1712296245543,-500.0,0.00046849,5]
[321537712,1712296245552,-500.0,0.00046849,5]
[321537715,1712296245563,-500.0,0.00046849,5]
[321537717,1712296245572,-500.0,0.00046849,5]
[321537719,1712296245581,-500.0,0.00046849,5]
[321537722,1712296245590,-500.0,0.00046849,5]
[321537724,1712296245599,-340.90157756,0.00046849,5]
[321537727,1712296245609,-500.0,0.00046849,5]
[321537731,1712296245618,-500.0,0.00046849,5]
[321537733,1712296245627,-500.0,0.00046849,5]
[321537736,1712296245636,-500.0,0.00046849,5]
[321537738,1712296245645,-466.95444582,0.00046849,5]
[321537742,1712296245654,-500.0,0.00046849,5]
[321537744,1712296245663,-500.0,0.00046849,5]
[321537747,1712296245673,-500.0,0.00046849,5]
[321537748,1712296245682,-1138.69,0.00046849,5]
[321537751,1712296245691,-500.0,0.00046849,5]
[321537753,1712296245700,-500.0,0.00046849,5]
[321537757,1712296245710,-519.93809434,0.00046849,5]
[321537759,1712296245719,-500.0,0.00046849,5]
[321537761,1712296245728,-500.0,0.00046849,5]
[321537764,1712296245736,-500.0,0.00046849,5]
[321537767,1712296245745,-500.0,0.00046849,5]
[321537769,1712296245754,-502.10824241,0.00046849,5]
[321537772,1712296245763,-610.04943433,0.00046849,5]
[321537775,1712296245772,-505.29380755,0.00046849,5]
[321537777,1712296245781,-500.0,0.00046849,5]
[321537780,1712296245790,-500.0,0.00046849,5]
[321537782,1712296245799,-2634.01,0.00046849,5]
[321537785,1712296245810,-500.0,0.00046849,5]
[321537788,1712296245819,-151.0,0.00046849,7]
[321537790,1712296245828,-151.0,0.00046849,7]
[321537793,1712296245836,-151.0,0.00046849,7]
[321537796,1712296245846,-500.0,0.00046849,5]
[321537799,1712296245855,-500.0,0.00046849,5]
[321537801,1712296245864,-3472.01,0.00046849,7]
[321537804,1712296245873,-500.0,0.00046849,5]
[321537807,1712296245882,-500.0,0.00046849,5]
[321537809,1712296245891,-500.0,0.00046849,5]
[321537812,1712296245900,-501.0,0.00046849,5]
[321537815,1712296245909,-500.0,0.00046849,5]
[321537817,1712296245919,-500.0,0.00046849,5]
[321537820,1712296245928,-948.94,0.00046849,5]
[321537823,1712296245937,-500.0,0.00046849,5]
[321537825,1712296245945,-500.0,0.00046849,5]
[321537827,1712296245954,-507.28520648,0.00046849,5]
[321537831,1712296245964,-286.52862305,0.00046849,5]
[321537834,1712296245973,-500.0,0.00046849,5]
[321537835,1712296245982,-500.0,0.00046849,5]
[321537838,1712296245992,-500.0,0.00046849,5]
[321537840,1712296246003,-500.0,0.00046849,5]
[321537842,1712296246013,-5068.52,0.00046849,5]
[321537845,1712296246022,-500.0,0.00046849,5]
[321537846,1712296246031,-500.0,0.00046849,5]
[321537848,1712296246040,-500.0,0.00046849,5]
[321537850,1712296246049,-500.0,0.00046849,5]
[321537852,1712296246060,-500.0,0.00046849,5]
[321537854,1712296246069,-334.08440446,0.00046849,5]
[321537856,1712296246078,-500.0,0.00046849,5]
[321537858,1712296246088,-500.0,0.00046849,5]
[321537860,1712296246097,-4212.02,0.00046849,5]
[321537862,1712296246106,-500.0,0.00046849,5]
[321537864,1712296246115,-500.0,0.00046849,5]
[321537866,1712296246125,-186.378388,0.00046849,7]
[321537868,1712296246134,-186.378388,0.00046849,7]
[321537879,1712296246226,-186.378388,0.00046849,7]
[321537881,1712296246236,-500.0,0.00046849,5]
[321537883,1712296246245,-186.378388,0.00046849,7]
[321537885,1712296246254,-186.378388,0.00046849,7]
[321537887,1712296246263,-186.378388,0.00046849,7]
[321537889,1712296246273,-500.0,0.00046849,5]
[321537891,1712296246282,-500.0,0.00046849,5]
[321537893,1712296246291,-500.0,0.00046849,5]
[321537895,1712296246300,-15250.3,0.00046849,5]
[321537897,1712296246311,-6547.19,0.00046849,5]
[321537899,1712296246320,-596.83,0.00046849,5]
[321537901,1712296246329,-12380.81,0.00046849,5]
[321537903,1712296246339,-7145.7,0.00046849,5]
[321537905,1712296246347,-831.38,0.00046849,5]
[321537907,1712296246356,-623.6,0.00046849,5]
[321537909,1712296246365,-500.0,0.00046849,5]
[321537911,1712296246374,-500.0,0.00046849,5]
[321537913,1712296246383,-529.84,0.00046849,5]
[321537915,1712296246393,-500.0,0.00046849,5]
[321537917,1712296246402,-500.0,0.00046849,5]
[321537919,1712296246412,-1147.49,0.00046849,5]
[321537921,1712296246422,-500.0,0.00046849,5]
[321537923,1712296246432,-500.0,0.00046849,5]
[321537925,1712296246441,-586.94,0.00046849,5]
[321537927,1712296246453,-668.66,0.00046849,5]
[321537929,1712296246462,-500.0,0.00046849,5]
[321537931,1712296246471,-1222.14,0.00046849,5]
[321537933,1712296246481,-500.0,0.00046849,5]
[321537935,1712296246491,-500.0,0.00046849,5]
[321537937,1712296246500,-2906.83,0.00046849,5]
[321537939,1712296246509,-500.0,0.00046849,5]
[321537941,1712296246519,-500.0,0.00046849,5]
[321537943,1712296246529,-241.11303058,0.00046849,5]
[321537945,1712296246537,-500.0,0.00046849,5]
[321537947,1712296246546,-1951.48,0.00046849,5]
[321537949,1712296246556,-1000.73639638,0.00046849,5]
[321537951,1712296246565,-500.0,0.00046849,5]
[321537953,1712296246574,-500.0,0.00046849,5]
[321537955,1712296246583,-5484.72,0.00046849,5]
[321537957,1712296246592,-500.0,0.00046849,5]
[321537959,1712296246601,-574.86,0.00046849,5]
[321537961,1712296246612,-1057.39,0.00046849,5]
[321537963,1712296246621,-500.0,0.00046849,5]
[321537965,1712296246630,-730.01,0.00046849,5]
[321537967,1712296246640,-995.02,0.00046849,5]
[321537969,1712296246649,-510.15097688,0.00046849,5]
[321537971,1712296246658,-500.0,0.00046849,5]
[321537973,1712296246667,-500.0,0.00046849,5]
[321537975,1712296246675,-500.0,0.00046849,5]
[321537977,1712296246685,-500.0,0.00046849,5]
[321537979,1712296246694,-1574.20728585,0.00047,7]
[321537982,1712296246711,-316.79271415,0.00047,7]
[321537984,1712296246720,-165.0,0.00047,90]
[321537986,1712296246729,-155.3428752,0.00047076,30]
[321537988,1712296246739,-202.5506203,0.00047094,2]
[321537990,1712296246748,-202.5506203,0.00047094,2]
[321537992,1712296246757,-202.5506203,0.00047094,2]
[321537994,1712296246766,-202.5506203,0.00047094,2]
[321537996,1712296246775,-202.5506203,0.00047094,2]
[321537998,1712296246784,-202.5506203,0.00047094,2]
[321538000,1712296246793,-202.5506203,0.00047094,2]
[321538002,1712296246802,-202.5506203,0.00047094,2]
[321538004,1712296246813,-202.5506203,0.00047094,2]
[321538006,1712296246822,-202.5506203,0.00047094,2]
[321538008,1712296246831,-202.5506203,0.00047094,2]
[321538009,1712296246840,-202.5506203,0.00047094,2]
[321538010,1712296246849,-202.5506203,0.00047094,2]
[321538011,1712296246857,-202.5506203,0.00047094,2]
[321538012,1712296246867,-367.1684698,0.00047094,2]
[321538013,1712296246878,-360.07903834,0.00047122,4]
[321538014,1712296246887,-607.68,0.00047122,7]
[321538015,1712296246896,-607.68,0.00047122,7]
[321538016,1712296246906,-607.68,0.00047122,7]
[321538017,1712296246916,-607.68,0.00047122,7]
[321538018,1712296246925,-607.68,0.00047122,7]
[321538019,1712296246934,-607.68,0.00047122,7]
[321538020,1712296246944,-607.68,0.00047122,7]
[321538021,1712296246953,-607.68,0.00047122,7]
[321538022,1712296246962,-607.68,0.00047122,7]
[321538023,1712296246972,-500.0,0.00047122,5]
[321538024,1712296246981,-500.0,0.00047122,5]
[321538025,1712296246990,-500.0,0.00047123,5]
[321538026,1712296247000,-500.0,0.00047123,5]
[321538027,1712296247009,-551.81129447,0.00047123,5]
[321538028,1712296247018,-500.0,0.00047123,5]
[321538029,1712296247027,-500.0,0.00047123,5]
[321538030,1712296247037,-500.0,0.00047123,5]
[321538031,1712296247046,-500.0,0.00047123,5]
[321538032,1712296247055,-500.0,0.00047123,5]
[321538033,1712296247065,-500.0,0.00047123,5]
[321538034,1712296247075,-500.0,0.00047123,5]
[321538035,1712296247084,-1138.69,0.00047123,5]
[321538036,1712296247094,-500.0,0.00047123,5]
[321538037,1712296247104,-500.0,0.00047123,5]
[321538038,1712296247114,-500.0,0.00047123,5]
[321538039,1712296247124,-2634.01,0.00047123,5]
[321538040,1712296247134,-500.0,0.00047123,5]
[321538041,1712296247144,-500.0,0.00047123,5]
[321538042,1712296247154,-3472.01,0.00047123,7]
[321538043,1712296247163,-500.0,0.00047123,5]
[321538044,1712296247173,-500.0,0.00047123,5]
[321538045,1712296247182,-501.0,0.00047123,5]
[321538046,1712296247192,-500.0,0.00047123,5]
[321538047,1712296247202,-948.94,0.00047123,5]
[321538048,1712296247211,-500.0,0.00047123,5]
[321538049,1712296247221,-500.0,0.00047123,5]
[321538050,1712296247231,-500.0,0.00047123,5]
[321538051,1712296247242,-500.0,0.00047123,5]
[321538052,1712296247251,-500.0,0.00047123,5]
[321538053,1712296247261,-5068.52,0.00047123,5]
[321538054,1712296247271,-500.0,0.00047123,5]
[321538055,1712296247280,-500.0,0.00047123,5]
[321538056,1712296247290,-500.0,0.00047123,5]
[321538057,1712296247299,-500.0,0.00047123,5]
[321538058,1712296247310,-500.0,0.00047123,5]
[321538059,1712296247319,-533.18935209,0.00047123,5]
[321538060,1712296247328,-4212.02,0.00047123,5]
[321538061,1712296247337,-500.0,0.00047123,5]
[321538062,1712296247345,-500.0,0.00047123,5]
[321538063,1712296247354,-186.378388,0.00047123,7]
[321538064,1712296247365,-186.378388,0.00047123,7]
[321538066,1712296247373,-500.0,0.00047123,5]
[321538068,1712296247383,-186.378388,0.00047123,7]
[321538070,1712296247392,-186.378388,0.00047123,7]
[321538072,1712296247401,-500.0,0.00047123,5]
[321538074,1712296247410,-500.0,0.00047123,5]
[321538076,1712296247420,-500.0,0.00047123,5]
[321538078,1712296247429,-15250.3,0.00047123,5]
[321538080,1712296247438,-6547.19,0.00047123,5]
[321538082,1712296247450,-596.83,0.00047123,5]
[321538084,1712296247459,-818.29551487,0.00047123,5]
[321538095,1712296247561,-202.5506203,0.00046272,2]
[321538097,1712296247571,-11562.51448513,0.00047123,5]
[321538099,1712296247579,-7145.7,0.00047123,5]
[321538101,1712296247589,-831.38,0.00047123,5]
[321538103,1712296247597,-623.6,0.00047123,5]
[321538105,1712296247607,-500.0,0.00047123,5]
[321538107,1712296247616,-500.0,0.00047123,5]
[321538109,1712296247626,-529.84,0.00047123,5]
[321538111,1712296247635,-500.0,0.00047123,5]
[321538113,1712296247644,-500.0,0.00047123,5]
[321538115,1712296247654,-1147.49,0.00047123,5]
[321538117,1712296247663,-500.0,0.00047123,5]
[321538119,1712296247671,-500.0,0.00047123,5]
[321538121,1712296247681,-586.94,0.00047123,5]
[321538123,1712296247690,-668.66,0.00047123,5]
[321538124,1712296247699,-500.0,0.00047123,5]
[321538125,1712296247708,-1222.14,0.00047123,5]
[321538127,1712296247718,-500.0,0.00047123,5]
[321538129,1712296247727,-2906.83,0.00047123,5]
[321538131,1712296247735,-500.0,0.00047123,5]
[321538132,1712296247745,-500.0,0.00047123,5]
[321538134,1712296247754,-500.0,0.00047123,5]
[321538136,1712296247763,-1951.48,0.00047123,5]
[321538138,1712296247772,-500.0,0.00047123,5]
[321538140,1712296247781,-500.0,0.00047123,5]
[321538141,1712296247790,-5484.72,0.00047123,5]
[321538143,1712296247800,-500.0,0.00047123,5]
[321538144,1712296247811,-574.86,0.00047123,5]
[321538146,1712296247820,-1057.39,0.00047123,5]
[321538147,1712296247831,-730.01,0.00047123,5]
[321538148,1712296247840,-995.02,0.00047123,5]
[321538150,1712296247849,-500.0,0.00047123,5]
[321538151,1712296247858,-500.0,0.00047123,5]
[321538153,1712296247868,-500.0,0.00047123,5]
[321538155,1712296247877,-4342.04971005,0.0004728,2]
[321538156,1712296247886,-500.0,0.00047296,5]
[321538157,1712296247895,-487.4018791,0.00047333,15]
[321538159,1712296247905,-685.74947039,0.00047378,4]
[321538160,1712296247915,-155.41426369,0.00047378,4]
[321538161,1712296247924,-296.4043073,0.00047378,4]
[321538162,1712296247933,-155.02635448,0.00047378,4]
[321538163,1712296247942,-171.92458421,0.00047378,4]
[321538164,1712296247952,-214.41229815,0.00047378,4]
[321538165,1712296247962,-1271.73059431,0.00047378,4]
[321538166,1712296247971,-287.73427922,0.00047378,4]
[321538167,1712296247981,-807.30445512,0.00047378,4]
[321538168,1712296247990,-155.74869237,0.00047378,4]
[321538169,1712296247999,-1081.86573906,0.00047378,4]
[321538170,1712296248009,-560.79663615,0.00047378,4]
[321538171,1712296248018,-1083.2774188,0.00047378,4]
[321538172,1712296248030,-210.0400474,0.00047378,4]
[321538173,1712296248039,-414.82398666,0.00047378,4]
[321538174,1712296248048,-155.83579927,0.00047378,4]
[321538175,1712296248058,-170.67194266,0.00047378,4]
[321538176,1712296248068,-3757.29000016,0.00047378,4]
[321538177,1712296248077,-243.571884,0.00047378,4]
[321538178,1712296248086,-518.96236695,0.00047378,4]
[321538179,1712296248095,-186.378388,0.00047378,7]
[321538180,1712296248105,-186.378388,0.00047378,7]
[321538181,1712296248114,-542.70380695,0.00047379,4]
[321538182,1712296248123,-186.23338631,0.00047379,4]
[321538183,1712296248132,-427.71147419,0.00047379,4]
[321538184,1712296248142,-331.82560957,0.00047379,2]
[321538185,1712296248151,-526.31165675,0.00047379,4]
[321538186,1712296248160,-477.65562487,0.00047379,4]
[321538187,1712296248169,-2285.63985043,0.00047379,4]
[321538567,1712297440238,-1227.09957978,0.00035,2]
[321538568,1712297440248,-2459.53116957,0.00035,2]
[321538569,1712297440258,-550.0,0.00040129,3]
[321538570,1712297440267,-33674.3915744,0.0004013,2]
[321538571,1712297440276,-224.95092301,0.00043687,2]
[321538572,1712297440286,-1192.56015324,0.00043729,2]
[321538573,1712297440298,-2621.49987216,0.00043729,2]
[321538889,1712298638349,-316.9505156,0.0003803,2]
[321538892,1712298638360,-316.9505156,0.0004303,2]
[321538893,1712298638369,-32.79160164,0.00043666,2]
[321539014,1712298643417,-150.67541436,0.00043666,2]
[321539015,1712298643427,-384.83018219,0.00043729,2]
[321539016,1712298643438,-610.12663931,0.00043729,40]
[321539017,1712298643532,-1333.98335904,0.00043729,40]
[321539018,1712298643542,-4887.5359149,0.00044185,2]
[321539019,1712298643551,-550.0,0.00044271,3]
[321539020,1712298643560,-259.7988449,0.00044272,2]
[321539021,1712298643570,-392.0,0.00044553,3]
[321539022,1712298643579,-201.61854708,0.00044554,30]
[321539169,1712299838537,-183.467016,0.00041963,2]
[321539170,1712299838548,-676.28850812,0.00042324,4]
[321539171,1712299838557,-345.95247588,0.00042325,3]
[321539455,1712301038755,-165.88970626,0.00040125,2]
[321539458,1712301038769,-171.76800893,0.00040125,9]
[321539462,1712301038781,-550.0,0.00040208,3]
[321539464,1712301038796,-3703.73915527,0.00040209,2]
[321539467,1712301038812,-1044.50424343,0.00040209,2]
[321539860,1712301043994,-16303.35642523,0.00040209,2]
[321539924,1712302231921,-239.58143426,0.00034868,4]
[321539925,1712302231932,-584.09483287,0.00038109,2]
[321539926,1712302231942,-208.526246,0.00038154,2]
[321539927,1712302231951,-568.29988079,0.00038197,4]
[321539928,1712302231962,-400.0,0.00038198,2]
[321539929,1712302231971,-400.0,0.00038198,2]
[321539930,1712302231982,-40069.63756343,0.00038199,2]
[321539932,1712302231991,-165.88970626,0.00040009,2]
[321539934,1712302232001,-155.04651395,0.00040209,31]
[321539936,1712302232011,-166.666666,0.00041096,2]
[321539938,1712302232020,-389.0744216,0.00041768,2]
[321539940,1712302232029,-560.0,0.00042017,3]
[321539941,1712302232040,-256.56534513,0.00042324,2]
[321539943,1712302232050,-1946.34914778,0.00042325,40]
[321539946,1712302232060,-156.78265129,0.00042325,4]
[321539948,1712302232070,-311.17073746,0.00042325,2]
[321539949,1712302232079,-6450.43947688,0.00042325,120]
[321539950,1712302232089,-800.59677026,0.00042325,4]
[321539951,1712302232098,-151.0,0.00042325,7]
[321539952,1712302232107,-151.0,0.00042325,7]
[321539953,1712302232117,-202.5506203,0.00043034,2]
[321539954,1712302232127,-202.5506203,0.00043034,2]
[321539955,1712302232139,-202.5506203,0.00043034,2]
[321539956,1712302232149,-151.0,0.00043034,7]
[321539957,1712302232159,-151.0,0.00043109,7]
[321539958,1712302232170,-584.09483287,0.00043109,2]
[321539959,1712302232182,-151.0,0.00043109,7]
[321539960,1712302232191,-151.0,0.00043109,7]
[321539961,1712302232201,-153.0,0.00043548,2]
[321539962,1712302232211,-153.0,0.00043548,2]
[321539963,1712302232221,-153.0,0.00043548,2]
[321539964,1712302232230,-153.0,0.00043548,2]
[321539965,1712302232239,-154.59547571,0.00043829,2]
[321539966,1712302232249,-151.0,0.00044229,7]
[321539967,1712302232259,-151.0,0.00044229,7]
[321539968,1712302232269,-151.0,0.00044229,7]
[321539969,1712302232279,-151.0,0.00044229,7]
[321539970,1712302232290,-202.5506203,0.00044464,2]
[321539971,1712302232300,-68.75105192,0.00044554,30]
[321539972,1712302232310,-162.228683,0.00044554,30]
[321539973,1712302232319,-192.293757,0.00044554,30]
[321539974,1712302232329,-163.89835,0.00044554,30]
[321539975,1712302232338,-270.369601,0.00044554,30]
[321539976,1712302232347,-162.228683,0.00044554,30]
[321539977,1712302232356,-192.293757,0.00044554,30]
[321539978,1712302232366,-163.89835,0.00044554,30]
[321539979,1712302232376,-176.286322,0.00044554,30]
[321539980,1712302232385,-338.79878865,0.00044554,2]
[321539981,1712302232394,-274.400701,0.00044554,7]
[321539982,1712302232403,-151.0,0.00044554,7]
[321539983,1712302232412,-151.0,0.00044554,7]
[321539984,1712302232422,-1412.50361086,0.0004456,4]
[321539985,1712302232431,-151.0,0.0004456,7]
[321539986,1712302232440,-151.0,0.0004456,7]
[321539987,1712302232450,-2000.0,0.000448,5]
[321539988,1712302232459,-151.0,0.000448,7]
[321539989,1712302232469,-151.0,0.000448,7]
[321539990,1712302232479,-314.06154265,0.0004494,7]
[321539991,1712302232488,-506.06518555,0.00044973,6]
[321539992,1712302232498,-229.13328675,0.000452,4]
[321539993,1712302232508,-155.5930135,0.00046,15]
[321539994,1712302232517,-1500.0,0.000464,2]
[321539995,1712302232527,-151.0,0.000464,7]
[321539996,1712302232537,-234.517093,0.000464,7]
[321539997,1712302232547,-500.0,0.00046474,2]
[321539998,1712302232556,-151.0,0.00046496,7]
[321539999,1712302232566,-151.0,0.00046496,7]
[321540000,1712302232575,-151.0,0.00046496,7]
[321540001,1712302232583,-500.0,0.00046498,2]
[321540002,1712302232594,-170.78876569,0.00046499,4]
[321540003,1712302232603,-2528.84163164,0.000465,30]
[321540049,1712302238062,-520.50176192,0.00046495,120]
[321540050,1712302238072,-560.89,0.00046495,120]
[321540051,1712302238083,-560.89,0.00046495,120]
[321540052,1712302238093,-321.30886113,0.00046495,120]
[321540061,1712302239947,-239.58113887,0.00046495,120]
[321540063,1712302239957,-560.89,0.00046495,120]
[321540065,1712302239966,-560.89,0.00046495,120]
[321540067,1712302239975,-560.89,0.00046495,120]
[321540069,1712302239985,-560.89,0.00046495,120]
[321540071,1712302239994,-560.89,0.00046495,120]
[321540073,1712302240003,-560.89,0.00046495,120]
[321540075,1712302240013,-560.89,0.00046495,120]
[321540077,1712302240021,-560.89,0.00046495,120]
[321540078,1712302240030,-560.89,0.00046495,120]
[321540079,1712302240041,-480.31666356,0.00046495,120]
[321540246,1712302243105,-80.57333644,0.00046495,120]
[321540248,1712302243114,-560.89,0.00046495,120]
[321540250,1712302243123,-560.89,0.00046495,120]
[321540252,1712302243133,-560.89,0.00046495,120]
[321540254,1712302243145,-560.89,0.00046495,120]
[321540256,1712302243156,-560.89,0.00046495,120]
[321540258,1712302243165,-560.89,0.00046495,120]
[321540260,1712302243175,-560.89,0.00046495,120]
[321540262,1712302243184,-560.89,0.00046495,120]
[321540264,1712302243193,-560.89,0.00046495,120]
[321540266,1712302243203,-560.89,0.00046495,120]
[321540268,1712302243212,-560.89,0.00046495,120]
[321540270,1712302243223,-560.89,0.00046495,120]
[321540272,1712302243232,-560.89,0.00046495,120]
[321540274,1712302243242,-560.89,0.00046495,120]
[321540276,1712302243251,-371.7040793,0.00046495,120]
[321540459,1712303438149,-500.0,0.00038198,2]
[321540460,1712303438160,-179.995171,0.00042685,120]
[321540461,1712303438170,-550.0,0.00042814,3]
[321540462,1712303438179,-1202.44056675,0.00042815,2]
[321540463,1712303438190,-2497.07549269,0.00042815,2]
[321540517,1712303446201,-21180.48394056,0.00042815,2]
[321540518,1712303446210,-208.526246,0.00042855,2]
[321540519,1712303446220,-10000.0,0.00043,4]
[321540520,1712303446230,-5640.39108834,0.00043815,4]
[321540521,1712303446239,-290.42793485,0.00043815,2]
[321540522,1712303446248,-680.38446127,0.00043815,2]
[321540523,1712303446259,-199.81778564,0.00043816,4]
[321540524,1712303446268,-1794.73284331,0.00044174,2]
[321540525,1712303446278,-1207.31107567,0.00044175,2]
[321540526,1712303446287,-221.225,0.00044222,2]
[321540527,1712303446295,-194.69827763,0.00044395,2]
[321540528,1712303446304,-151.92,0.00044999,7]
[321540529,1712303446317,-151.92,0.00044999,7]
[321540530,1712303446326,-223.07218368,0.00044999,120]
[321540531,1712303446335,-500.0,0.00044999,120]
[321540532,1712303446344,-500.0,0.00044999,120]
[321540533,1712303446353,-500.0,0.00044999,120]
[321540534,1712303446363,-500.0,0.00044999,120]
[321540535,1712303446373,-500.0,0.00044999,120]
[321540536,1712303446382,-500.0,0.00044999,120]
[321540537,1712303446392,-500.0,0.00044999,120]
[321540538,1712303446402,-500.0,0.00044999,120]
[321540539,1712303446411,-500.0,0.00044999,120]
[321540540,1712303446421,-500.0,0.00044999,120]
[321540541,1712303446430,-500.0,0.00044999,120]
[321540542,1712303446440,-500.0,0.00044999,120]
[321540543,1712303446450,-500.0,0.00044999,120]
[321540544,1712303446461,-500.0,0.00044999,120]
[321540545,1712303446475,-500.0,0.00044999,120]
[321540546,1712303446485,-500.0,0.00044999,120]
[321540547,1712303446494,-500.0,0.00044999,120]
[321540548,1712303446504,-500.0,0.00044999,120]
[321540549,1712303446513,-500.0,0.00044999,120]
[321540550,1712303446523,-500.0,0.00044999,120]
[321540551,1712303446535,-500.0,0.00044999,120]
[321540552,1712303446544,-500.0,0.00044999,120]
[321540553,1712303446556,-500.0,0.00044999,120]
[321540554,1712303446565,-500.0,0.00044999,120]
[321540555,1712303446574,-500.0,0.00044999,120]
[321540556,1712303446585,-500.0,0.00044999,120]
[321540557,1712303446595,-500.0,0.00044999,120]
[321540558,1712303446604,-500.0,0.00044999,120]
[321540559,1712303446613,-500.0,0.00044999,120]
[321540560,1712303446622,-500.0,0.00044999,120]
[321540561,1712303446631,-500.0,0.00044999,120]
[321540562,1712303446641,-500.0,0.00044999,120]
[321540563,1712303446652,-500.0,0.00044999,120]
[321540564,1712303446661,-500.0,0.00044999,120]
[321540565,1712303446671,-500.0,0.00044999,120]
[321540566,1712303446682,-500.0,0.00044999,120]
[321540567,1712303446692,-500.0,0.00044999,120]
[321540568,1712303446702,-401.28614449,0.00044999,120]
[321540569,1712303446712,-500.0,0.00044999,120]
[321540570,1712303446722,-500.0,0.00044999,120]
[321540571,1712303446731,-500.0,0.00044999,120]
[321540572,1712303446740,-500.0,0.00044999,120]
[321540573,1712303446750,-500.0,0.00044999,120]
[321540574,1712303446759,-500.0,0.00044999,120]
[321540575,1712303446768,-520.38584335,0.00044999,120]
[321540576,1712303446777,-500.0,0.00044999,120]
[321540577,1712303446787,-500.0,0.00044999,120]
[321540578,1712303446796,-500.0,0.00044999,120]
[321540579,1712303446805,-500.0,0.00044999,120]
[321540580,1712303446814,-500.0,0.00044999,120]
[321540581,1712303446823,-500.0,0.00044999,120]
[321540582,1712303446834,-500.0,0.00044999,120]
[321540583,1712303446843,-500.0,0.00044999,120]
[321540584,1712303446852,-500.0,0.00044999,120]
[321540585,1712303446861,-500.0,0.00044999,120]
[321540586,1712303446870,-500.0,0.00044999,120]
[321540587,1712303446879,-31005.68242171,0.00045,5]
[321540588,1712303446889,-93591.00134305,0.00045,120]
[321540939,1712304643616,-2270.0275,0.0004013,2]
[321540941,1712304643628,-1718.62988615,0.0004013,2]